{"text_format":"1","workbook":"xlsx","n_sheets":29,"sheets":["Student Information","Attendance","PrePost"," Dates of Stages","CP","AP","AD","MP","Janice Example ","Student 1","Student 2","Student 3","Student 4","Student 5","Student 6","Student 7","Student 8","Student 9","Student 10","Student 11","Student 12","Student 13","Student 14","Student 15","Student 16","Student 17","Student 18","Student 19","Student 20"],"not_rendered":{"charts":90,"images":2,"macros":1,"external_links":0,"defined_names":0,"comments":0,"pivot_tables":0},"unopened":[],"bounds":{"document_bytes":16777216,"sheet_cells":100000,"rows_first":2000,"rows_last":500,"rows_between":2000,"halvings":0,"cell_chars":16384,"cell_head_chars":4096},"cells_cut":0,"cells_raw":0,"read":"whole","date_system":"1900"}

{"sheet":"Student Information","index":0,"n_rows":32,"n_cols":20,"rows_kept":32,"cut":false,"hidden":false,"merged":[[29,2,29,3],[30,2,30,3],[31,2,31,3],[29,5,32,12],[22,12,23,20],[22,10,24,11]]}
[null,"Student Name","Grade Level","IEP?","Gender","ELL?","ELL WIDA Access Level","Race/Ethnicity","Literacy Measure","Other Interventions","Date of Reading Measure 1","Reading Measure 1","Date of Reading Measure 2","Reading Measure 2","Date of Reading Measure 3","Reading Measure 3","Date of Reading Measure 4","Reading Measure 4","Date of Reading Measure 5","Reading Measure 5"]
[null,"Janice Example",8,"No","Female","Yes",null,"Hispanic","Something",null,"2014-10-20",898]
[1]
[2]
[3]
[4]
[5]
[6]
[7]
[8]
[9]
[10]
[11]
[12]
[13]
[14]
[15]
[16]
[17]
[18]
[19]
[20]
[null,null,null,null,null,null,null,null,null,null,"You can enter Reading Measure 1 on Data Form or directly on this worksheet",null," Enter Reading Measure 2-5 directly on this worksheet.  The \"CLEAR\" Button empties all cells."]
[null,null,null,null,"IEPs",{"$f":"COUNTIF(D3:D22,\"Yes\")","v":0},null,"American Indian or Alaskan Native",{"$f":"COUNTIF(H3:H22,H24)","v":0}]
[null,null,null,null,"ELL",{"$f":"COUNTIF(F3:F22,\"Yes\")","v":0},null,"Asian or Pacific Islander",{"$f":"COUNTIF(H3:H22,H25)","v":0}]
[null,null,null,null,"Male",{"$f":"COUNTIF(E3:E22,\"Male\")","v":0},null,"Black, not of Hispanic Origin",{"$f":"COUNTIF(H3:H22,H26)","v":0}]
[null,null,null,null,"Female",{"$f":"COUNTIF(E3:E22,\"Female\")","v":0},null,"Hispanic",{"$f":"COUNTIF(H3:H22,H27)","v":0}]
[null,null,null,null,null,null,null,"White, not of Hispanic Origin",{"$f":"COUNTIF(H3:H22,H28)","v":0}]
[null,null,null,null,null,null,null,"Other",{"$f":"COUNTIF(H3:H22,H29)","v":0}]
[null,"Teacher",null,null,null,"The Self Questioning Strategy"]
[null,"SCHOOL"]
[null,"CLASS PERIOD:"]

{"sheet":"Attendance","index":1,"n_rows":26,"n_cols":3,"rows_kept":26,"cut":false,"hidden":false,"merged":[[1,0,1,7],[2,0,3,0],[2,2,2,14]]}
[]
["The Self Questioning Strategy:  Attendance"]
[null,"DO NOT TYPE IN THIS COLUMN","Instructions:  Fill in each date of instruction.  Type an \"X\" in that column for each student instructed that day.  Total \"X\"'s are tabulated in COLUMN B.  "]
[null,"Dates of Instruction:","2015-09-01"]
["Student Name","TOTAL DAYS"]
["Jason Example",{"$f":"COUNTA(C6:AG6)","v":1},"x"]
[0,{"$f":"COUNTA(C7:AG7)","v":0}]
[0,{"$f":"COUNTA(C8:GA8)","v":0}]
[0,{"$f":"COUNTA(C9:GA9)","v":0}]
[0,{"$f":"COUNTA(C10:GA10)","v":0}]
[0,{"$f":"COUNTA(C11:GA11)","v":0}]
[0,0]
[0,0]
[0,0]
[0,0]
[0,0]
[0,0]
[0,0]
[0,0]
[0,{"$f":"COUNTA(C20:AG20)","v":0}]
[0,0]
[0,0]
[0,0]
[0,0]
[0,0]
[0,{"$f":"COUNTA(C26:GA26)","v":0}]

{"sheet":"PrePost","index":2,"n_rows":29,"n_cols":9,"rows_kept":29,"cut":false,"hidden":false,"merged":[[26,2,26,3],[27,2,27,3],[28,2,28,3],[0,1,0,8]]}
[null,"The Self Questioning Strategy:  Pre and Post Tests"]
[null,"Student Name","Pre Test Date","SQ Pre Test","Comp Pre Test","Post Test Date","SQ  Post Test","Comp Post Test","Days from Pretest 1 to Final Post Test"]
[null,{"$f":"'Student Information'!B2","v":"Janice Example"},"2013-03-08",30,25,"2013-04-04",85,95,{"$f":"F3-C3","v":27}]
[1,{"$f":"'Student Information'!B3","v":0},null,null,null,null,null,null,{"$f":"F4-C4","v":0}]
[2,{"$f":"'Student Information'!B4","v":0},null,null,null,null,null,null,{"$f":"F5-C5","v":0}]
[3,{"$f":"'Student Information'!B5","v":0},null,null,null,null,null,null,0]
[4,{"$f":"'Student Information'!B6","v":0},null,null,null,null,null,null,0]
[5,{"$f":"'Student Information'!B7","v":0},null,null,null,null,null,null,0]
[6,{"$f":"'Student Information'!B8","v":0},null,null,null,null,null,null,0]
[7,{"$f":"'Student Information'!B9","v":0},null,null,null,null,null,null,0]
[8,{"$f":"'Student Information'!B10","v":0},null,null,null,null,null,null,0]
[9,{"$f":"'Student Information'!B11","v":0},null,null,null,null,null,null,0]
[10,{"$f":"'Student Information'!B12","v":0},null,null,null,null,null,null,0]
[11,{"$f":"'Student Information'!B13","v":0},null,null,null,null,null,null,0]
[12,{"$f":"'Student Information'!B14","v":0},null,null,null,null,null,null,0]
[13,{"$f":"'Student Information'!B15","v":0},null,null,null,null,null,null,0]
[14,{"$f":"'Student Information'!B16","v":0},null,null,null,null,null,null,0]
[15,{"$f":"'Student Information'!B17","v":0},null,null,null,null,null,null,0]
[16,{"$f":"'Student Information'!B18","v":0},null,null,null,null,null,null,0]
[17,{"$f":"'Student Information'!B19","v":0},null,null,null,null,null,null,0]
[18,{"$f":"'Student Information'!B20","v":0},null,null,null,null,null,null,0]
[19,{"$f":"'Student Information'!B21","v":0},null,null,null,null,null,null,0]
[20,{"$f":"'Student Information'!B22","v":0},null,null,null,null,null,null,{"$f":"F23-C23","v":0}]
[null,"Average",null,{"$f":"AVERAGE(D4:D23)","v":{"$error":"#DIV/0!"}},{"$f":"AVERAGE(E4:E23)","v":{"$error":"#DIV/0!"}},null,{"$f":"AVERAGE(G4:G23)","v":{"$error":"#DIV/0!"}},{"$f":"AVERAGE(H4:H23)","v":{"$error":"#DIV/0!"}}]
[]
[]
[null,"Teacher",{"$f":"'Student Information'!C30:D30","v":0}]
[null,"SCHOOL",{"$f":"'Student Information'!C31:D31","v":0}]
[null,"CLASS PERIOD:",{"$f":"'Student Information'!C32:D32","v":0}]

{"sheet":" Dates of Stages","index":3,"n_rows":27,"n_cols":27,"rows_kept":27,"cut":false,"hidden":false,"merged":[[0,1,0,10],[28,1,31,6]]}
[null,"Self Questioning: Dates Stages Were Completed"]
[null,"Student Name","Stage 1: COMMITMENTS","Stage 2: DESCRIBE","Stage 3: MODEL","Stage 4: VERBAL","Stage 5: CONTROLLED PRACTICE","Stage 6: ADVANCED PRACTICE","Stage 7: Commitments","Stage 8: ORIENTATION","Stage 8: ACTIVATION","Stage 8: ADAPTATION"]
[1,{"$f":"'Student Information'!B2","v":"Janice Example"},"2013-03-10","2013-03-15","2013-03-18","2013-03-20","2013-04-07","2013-04-13","2013-04-14","2013-04-14","2013-05-01","2013-05-12"]
[2,{"$f":"'Student Information'!B3","v":0}]
[3,{"$f":"'Student Information'!B4","v":0}]
[4,{"$f":"'Student Information'!B5","v":0}]
[5,{"$f":"'Student Information'!B6","v":0}]
[6,{"$f":"'Student Information'!B7","v":0}]
[7,{"$f":"'Student Information'!B8","v":0}]
[8,{"$f":"'Student Information'!B9","v":0}]
[9,{"$f":"'Student Information'!B10","v":0}]
[10,{"$f":"'Student Information'!B11","v":0}]
[11,{"$f":"'Student Information'!B12","v":0}]
[12,{"$f":"'Student Information'!B13","v":0}]
[13,{"$f":"'Student Information'!B14","v":0}]
[14,{"$f":"'Student Information'!B15","v":0}]
[15,{"$f":"'Student Information'!B16","v":0}]
[16,{"$f":"'Student Information'!B17","v":0}]
[17,{"$f":"'Student Information'!B18","v":0}]
[18,{"$f":"'Student Information'!B19","v":0}]
[19,{"$f":"'Student Information'!B20","v":0}]
[20,{"$f":"'Student Information'!B21","v":0}]
[21,{"$f":"'Student Information'!B22","v":0}]
[]
[null,"Teacher",{"$f":"'Student Information'!C30:D30","v":"00:00:00"},null,null,null,null,null,null,null,null,null,null,null,null,null,null,null,null,null,null,null,null,null,null,null,88]
[null,"SCHOOL",{"$f":"'Student Information'!C31:D31","v":"00:00:00"}]
[null,"CLASS PERIOD:",{"$f":"'Student Information'!C32:D32","v":0}]

{"sheet":"CP","index":4,"n_rows":28,"n_cols":37,"rows_kept":28,"cut":false,"hidden":false,"merged":[[0,6,0,17]]}
[null,null,null,null,null,null," The Self Questioning Strategy: Controlled Practice"]
[null,"Student Names","DATE CP 1","DATE FINAL CP","Days to complete","Date  CP 1","Grade Level  ","SQ  1","Quiz     1","Date 2","Grade Level    ","SQ  2","Quiz   2","Date 3","Grade Level ","SQ  3","Quiz  3","Date 4","Grade Level ","SQ  4","Quiz  4","Date 5","Grade Level ","SQ  5","Quiz 5","Date 6","Grade Level ","SQ6","Quiz 6","Date 7","Grade Level ","SQ 7","Quiz 7","Date 8","Grade Level ","SQ 8","Quiz 8"]
[null,"Janice Example","2013-04-02","2013-04-07",{"$f":"D3-C3","v":5},"2013-04-02","5th",55,50,"2013-04-02","5th",63,78,"2013-04-03","5th",85,90,"2013-04-04","6th",46,77,"2013-04-05","6th",98,54,"2013-04-06","6th",58,78,"2013-04-07","6th",80,87]
[1,{"$f":"'Student Information'!B3","v":0},null,null,{"$f":"D4-C4","v":0}]
[2,{"$f":"'Student Information'!B4","v":0},null,null,{"$f":"D5-C5","v":0}]
[3,{"$f":"'Student Information'!B5","v":0},null,null,0]
[4,{"$f":"'Student Information'!B6","v":0},null,null,0]
[5,{"$f":"'Student Information'!B7","v":0},null,null,0]
[6,{"$f":"'Student Information'!B8","v":0},null,null,0]
[7,{"$f":"'Student Information'!B9","v":0},null,null,0]
[8,{"$f":"'Student Information'!B10","v":0},null,null,0]
[9,{"$f":"'Student Information'!B11","v":0},null,null,0]
[10,{"$f":"'Student Information'!B12","v":0},null,null,0]
[11,{"$f":"'Student Information'!B13","v":0},null,null,0]
[12,{"$f":"'Student Information'!B14","v":0},null,null,0]
[13,{"$f":"'Student Information'!B15","v":0},null,null,0]
[14,{"$f":"'Student Information'!B16","v":0},null,null,0]
[15,{"$f":"'Student Information'!B17","v":0},null,null,0]
[16,{"$f":"'Student Information'!B18","v":0},null,null,0]
[17,{"$f":"'Student Information'!B19","v":0},null,null,0]
[18,{"$f":"'Student Information'!B20","v":0},null,null,0]
[19,{"$f":"'Student Information'!B21","v":0},null,null,0]
[20,{"$f":"'Student Information'!B22","v":0},null,null,0]
["Average",null,null,null,{"$f":"AVERAGE(E4:E23)","v":0},null,null,{"$f":"AVERAGE(H4:H23)","v":{"$error":"#DIV/0!"}},{"$f":"AVERAGE(I4:I23)","v":{"$error":"#DIV/0!"}},null,null,{"$f":"AVERAGE(L4:L23)","v":{"$error":"#DIV/0!"}},{"$error":"#DIV/0!"},null,{"$error":"#DIV/0!"},null,{"$error":"#DIV/0!"},null,null,{"$f":"AVERAGE(T4:T23)","v":{"$error":"#DIV/0!"}},{"$f":"AVERAGE(U4:U23)","v":{"$error":"#DIV/0!"}},null,null,{"$f":"AVERAGE(X4:X23)","v":{"$error":"#DIV/0!"}},{"$error":"#DIV/0!"},null,null,{"$error":"#DIV/0!"},{"$error":"#DIV/0!"},null,null,{"$error":"#DIV/0!"},{"$error":"#DIV/0!"},null,null,{"$error":"#DIV/0!"},{"$error":"#DIV/0!"}]
[]
[null,"Teacher",{"$f":"'Student Information'!C30:D30","v":"00:00:00"}]
[null,"School",{"$f":"'Student Information'!C31:D31","v":"00:00:00"}]
[null,"Class Period",{"$f":"'Student Information'!C32:D32","v":0}]

{"sheet":"AP","index":5,"n_rows":28,"n_cols":45,"rows_kept":28,"cut":false,"hidden":false,"merged":[[0,1,0,12]]}
[null," The Self Questioning Strategy: Advanced Practice "]
[null,"Student Names","Date of First AP ","Date of Final AP","Days to complete","Date AP 1","Grade Level   AP 1","SQ  AP 1","Quiz     AP 1","Date AP 2","Grade Level    AP 2","SQ  AP 2","Quiz   AP 2","Date AP 3","Grade Level AP 3","SQ  AP 3","Quiz  AP 3","Date AP 4","Grade Level AP 4","SQ  AP 4","Quiz  AP 4","Date AP 5","Grade Level    AP 5","SQ  AP 5","Quiz   AP 5","Date AP 6","Grade Level AP 6","SQ  AP 6","Quiz  AP 6","Date AP 7","Grade Level AP 7","SQ  AP 7","Quiz  AP 7","Date AP 8","Grade Level   AP 8","SQ  AP 8","Quiz     AP 8","Date AP 9","Grade Level    AP 9","SQ  AP 9","Quiz   AP 9","Date AP 10","Grade Level AP 10","SQ  AP 10","Quiz  AP 10"]
[null,"Janice Example","2013-04-08","2013-04-14",{"$f":"D3-C3","v":6},{"$f":"C3","v":"2013-04-08"},"7th",59,58,"2013-04-09","7th",60,89,"04/10/123","7th",90,80,"2013-04-10","7th",100,90,"2013-04-12","8th",75,70,"2013-04-13","8th",85,80]
[1,{"$f":"'Student Information'!B3","v":0},null,null,0,{"$f":"C4","v":"00:00:00"}]
[2,{"$f":"'Student Information'!B4","v":0},null,null,0,{"$f":"C5","v":"00:00:00"}]
[3,{"$f":"'Student Information'!B5","v":0},null,null,0,"00:00:00"]
[4,{"$f":"'Student Information'!B6","v":0},null,null,0,"00:00:00"]
[5,{"$f":"'Student Information'!B7","v":0},null,null,0,"00:00:00"]
[6,{"$f":"'Student Information'!B8","v":0},null,null,0,"00:00:00"]
[7,{"$f":"'Student Information'!B9","v":0},null,null,0,"00:00:00"]
[8,{"$f":"'Student Information'!B10","v":0},null,null,0,"00:00:00"]
[9,{"$f":"'Student Information'!B11","v":0},null,null,0,"00:00:00"]
[10,{"$f":"'Student Information'!B12","v":0},null,null,0,"00:00:00"]
[11,{"$f":"'Student Information'!B13","v":0},null,null,0,"00:00:00"]
[12,{"$f":"'Student Information'!B14","v":0},null,null,0,"00:00:00"]
[13,{"$f":"'Student Information'!B15","v":0},null,null,0,"00:00:00"]
[14,{"$f":"'Student Information'!B16","v":0},null,null,0,"00:00:00"]
[15,{"$f":"'Student Information'!B17","v":0},null,null,0,"00:00:00"]
[16,{"$f":"'Student Information'!B18","v":0},null,null,0,"00:00:00"]
[17,{"$f":"'Student Information'!B19","v":0},null,null,0,"00:00:00"]
[18,{"$f":"'Student Information'!B20","v":0},null,null,0,"00:00:00"]
[19,{"$f":"'Student Information'!B21","v":0},null,null,0,"00:00:00"]
[20,{"$f":"'Student Information'!B22","v":0},null,null,0,"00:00:00"]
["Average",null,null,null,{"$f":"AVERAGE(E3:E22)","v":0.3},null,null,{"$f":"AVERAGE(H4:H23)","v":{"$error":"#DIV/0!"}},{"$f":"AVERAGE(I4:I23)","v":{"$error":"#DIV/0!"}},null,null,{"$f":"AVERAGE(L4:L23)","v":{"$error":"#DIV/0!"}},{"$f":"AVERAGE(M4:M23)","v":{"$error":"#DIV/0!"}},null,null,{"$f":"AVERAGE(P4:P23)","v":{"$error":"#DIV/0!"}},{"$f":"AVERAGE(Q4:Q23)","v":{"$error":"#DIV/0!"}},null,null,{"$f":"AVERAGE(T4:T23)","v":{"$error":"#DIV/0!"}},{"$f":"AVERAGE(U4:U23)","v":{"$error":"#DIV/0!"}},null,null,{"$f":"AVERAGE(X4:X23)","v":{"$error":"#DIV/0!"}},{"$f":"AVERAGE(Y4:Y23)","v":{"$error":"#DIV/0!"}},null,null,{"$f":"AVERAGE(AB4:AB23)","v":{"$error":"#DIV/0!"}},{"$f":"AVERAGE(AC4:AC23)","v":{"$error":"#DIV/0!"}},null,null,{"$f":"AVERAGE(AF4:AF23)","v":{"$error":"#DIV/0!"}},{"$f":"AVERAGE(AG4:AG23)","v":{"$error":"#DIV/0!"}},null,null,{"$f":"AVERAGE(AJ4:AJ23)","v":{"$error":"#DIV/0!"}},{"$f":"AVERAGE(AK4:AK23)","v":{"$error":"#DIV/0!"}},null,null,{"$f":"AVERAGE(AN4:AN23)","v":{"$error":"#DIV/0!"}},{"$f":"AVERAGE(AO4:AO23)","v":{"$error":"#DIV/0!"}},null,null,{"$f":"AVERAGE(AR4:AR23)","v":{"$error":"#DIV/0!"}},{"$f":"AVERAGE(AS4:AS23)","v":{"$error":"#DIV/0!"}}]
[]
[null,"Teacher",{"$f":"'Student Information'!C30:D30","v":"00:00:00"}]
[null,"School",{"$f":"'Student Information'!C31:D31","v":"00:00:00"}]
[null,"Class Period",{"$f":"'Student Information'!C32:D32","v":0}]

{"sheet":"AD","index":6,"n_rows":29,"n_cols":35,"rows_kept":29,"cut":false,"hidden":false,"merged":[[0,1,0,13]]}
[null,"Self Questioning: Adaptation Scores"]
[null,"Student Names","Date of First AD","Date of Final AD","Days to complete","DateADP1","Genre","AD1","Q1","Date AD 2","Genre","AD 2","Q2","Date AD 3","Genre","AD 3","Q3","Date AD 4 ","Genre","AD 4","Quiz 4","Date AD 5 ","Genre","AD 5","Q5"]
[null,"Janice Example","2013-04-14","2013-04-30",{"$f":"D3-C3","v":16},"2013-04-14","Poetry",85,90,"2013-04-16","Non-Fiction",80,85,"2013-04-20","Fiction",90,95,"2013-04-30","Poetry",85,95,"2013-05-12","Non-Fiction",98,95]
[1,{"$f":"'Student Information'!B3","v":0},null,null,{"$f":"D4-C4","v":0}]
[2,{"$f":"'Student Information'!B4","v":0},null,null,0]
[3,{"$f":"'Student Information'!B5","v":0},null,null,0]
[4,{"$f":"'Student Information'!B6","v":0},null,null,0]
[5,{"$f":"'Student Information'!B7","v":0},null,null,0]
[6,{"$f":"'Student Information'!B8","v":0},null,null,0]
[7,{"$f":"'Student Information'!B9","v":0},null,null,0]
[8,{"$f":"'Student Information'!B10","v":0},null,null,0]
[9,{"$f":"'Student Information'!B11","v":0},null,null,0]
[10,{"$f":"'Student Information'!B12","v":0},null,null,0,null,null,null,null,null,null,null,null,null,null,null,null,null,null,null,null,null,null,null,null,"      "]
[11,{"$f":"'Student Information'!B13","v":0},null,null,0]
[12,{"$f":"'Student Information'!B14","v":0},null,null,0]
[13,{"$f":"'Student Information'!B15","v":0},null,null,0]
[14,{"$f":"'Student Information'!B16","v":0},null,null,0]
[15,{"$f":"'Student Information'!B17","v":0},null,null,0]
[16,{"$f":"'Student Information'!B18","v":0},null,null,0]
[17,{"$f":"'Student Information'!B19","v":0},null,null,0]
[18,{"$f":"'Student Information'!B20","v":0},null,null,0]
[19,{"$f":"'Student Information'!B21","v":0},null,null,0]
[20,{"$f":"'Student Information'!B22","v":0},null,null,0]
[21,"Average",null,null,{"$f":"AVERAGE(E4:E23)","v":0}]
[]
[]
[null,"Teacher",null,null,null,null,null,null,null,null,null,null,null,null,null,null,null,null,null,null,null,null,null,null,null,null,null,null,null,null,null,null,null,null,"Poetry"]
[null,"SCHOOL",null,null,null,null,null,null,null,null,null,null,null,null,null,null,null,null,null,null,null,null,null,null,null,null,null,null,null,null,null,null,null,null,"Fiction"]
[null,"CLASS PERIOD:",{"$f":"'Student Information'!C32:D32","v":0},null,null,null,null,null,null,null,null,null,null,null,null,null,null,null,null,null,null,null,null,null,null,null,null,null,null,null,null,null,null,null,"Non-Fiction"]

{"sheet":"MP","index":7,"n_rows":29,"n_cols":26,"rows_kept":29,"cut":false,"hidden":false,"merged":[[0,1,0,13]]}
[null,"Self Questioning: Maintenance Probe Scores"]
[null,"Student Names","Date of First MP ","Date of Final MP","Days to complete","Date MP1","Grade Level","MP1","Q1","Date MP 2","Grade Level","MP 2","Q2","Date MP 3","Grade Level","MP 3","Q3","Date MP 4 ","Grade Level","MP 4","Quiz 4","Date MP 5 ","Grade Level","MP 5","Q5"]
[null,"Janice Example","2013-04-14","2013-04-30",{"$f":"D3-C3","v":16},"2013-04-14","8th",85,90,"2013-04-16","8th",80,85,"2013-04-20","8th",90,95,"2013-04-30"]
[1,{"$f":"'Student Information'!B3","v":0},null,null,{"$f":"D4-C4","v":0}]
[2,{"$f":"'Student Information'!B4","v":0},null,null,0]
[3,{"$f":"'Student Information'!B5","v":0},null,null,0]
[4,{"$f":"'Student Information'!B6","v":0},null,null,0]
[5,{"$f":"'Student Information'!B7","v":0},null,null,0]
[6,{"$f":"'Student Information'!B8","v":0},null,null,0]
[7,{"$f":"'Student Information'!B9","v":0},null,null,0]
[8,{"$f":"'Student Information'!B10","v":0},null,null,0]
[9,{"$f":"'Student Information'!B11","v":0},null,null,0]
[10,{"$f":"'Student Information'!B12","v":0},null,null,0,null,null,null,null,null,null,null,null,null,null,null,null,null,null,null,null,null,null,null,null,"      "]
[11,{"$f":"'Student Information'!B13","v":0},null,null,0]
[12,{"$f":"'Student Information'!B14","v":0},null,null,0]
[13,{"$f":"'Student Information'!B15","v":0},null,null,0]
[14,{"$f":"'Student Information'!B16","v":0},null,null,0]
[15,{"$f":"'Student Information'!B17","v":0},null,null,0]
[16,{"$f":"'Student Information'!B18","v":0},null,null,0]
[17,{"$f":"'Student Information'!B19","v":0},null,null,0]
[18,{"$f":"'Student Information'!B20","v":0},null,null,0]
[19,{"$f":"'Student Information'!B21","v":0},null,null,0]
[20,{"$f":"'Student Information'!B22","v":0},null,null,0]
[21,"Average",null,null,{"$f":"AVERAGE(E4:E23)","v":0}]
[]
[]
[null,"Teacher"]
[null,"SCHOOL"]
[null,"CLASS PERIOD:",{"$f":"'Student Information'!C32:D32","v":0}]

{"sheet":"Janice Example ","index":8,"n_rows":7,"n_cols":9,"rows_kept":7,"cut":false,"hidden":false,"merged":[[0,4,2,9],[6,2,6,5]]}
[null,null,null,null," The Self Questioning Strategy: Student Graphs"]
[]
[]
[]
[null,null,null,null,null,null,null,"TEACHER:",{"$f":"'Student Information'!C30","v":"00:00:00"}]
[null,null,"Janice Example",null,null,null,null,"School:",{"$f":"'Student Information'!C31","v":"00:00:00"}]
[null,null,"Days From Pretest to Post Test:",null,null,null,42,"CLASS PERIOD:",{"$f":"'Student Information'!C32","v":0}]

{"sheet":"Student 1","index":9,"n_rows":7,"n_cols":9,"rows_kept":7,"cut":false,"hidden":false,"merged":[[0,4,2,9],[6,2,6,5]]}
[null,null,null,null," The Self Questioning Strategy: Student Graphs"]
[]
[]
[]
[null,null,null,null,null,null,null,"TEACHER:",{"$f":"'Student Information'!C30","v":"00:00:00"}]
[null,null,{"$f":"'Student Information'!B3","v":0},null,null,null,null,"School:",{"$f":"'Student Information'!C31","v":"00:00:00"}]
[null,null,"Days From Pretest to Post Test:",null,null,null,{"$f":"PrePost!I4","v":0},"CLASS PERIOD:",{"$f":"'Student Information'!C32","v":0}]

{"sheet":"Student 2","index":10,"n_rows":7,"n_cols":9,"rows_kept":7,"cut":false,"hidden":false,"merged":[[0,4,2,9],[6,2,6,5]]}
[null,null,null,null," The Self Questioning Strategy: Student Graphs"]
[]
[]
[]
[null,null,null,null,null,null,null,"TEACHER:",{"$f":"'Student Information'!C30","v":"00:00:00"}]
[null,null,{"$f":"'Student Information'!B4","v":0},null,null,null,null,"School:",{"$f":"'Student Information'!C31","v":"00:00:00"}]
[null,null,"Days From Pretest to Post Test:",null,null,null,{"$f":"PrePost!I5","v":0},"CLASS PERIOD:",{"$f":"'Student Information'!C32","v":0}]

{"sheet":"Student 3","index":11,"n_rows":7,"n_cols":9,"rows_kept":7,"cut":false,"hidden":false,"merged":[[0,4,2,9],[6,2,6,5]]}
[null,null,null,null," The Self Questioning Strategy: Student Graphs"]
[]
[]
[]
[null,null,null,null,null,null,null,"TEACHER:",{"$f":"'Student Information'!C30","v":"00:00:00"}]
[null,null,{"$f":"'Student Information'!B5","v":0},null,null,null,null,"School:",{"$f":"'Student Information'!C31","v":"00:00:00"}]
[null,null,"Days From Pretest to Post Test:",null,null,null,{"$f":"PrePost!I6","v":0},"CLASS PERIOD:",{"$f":"'Student Information'!C32","v":0}]

{"sheet":"Student 4","index":12,"n_rows":7,"n_cols":9,"rows_kept":7,"cut":false,"hidden":false,"merged":[[0,4,2,9],[6,2,6,5]]}
[null,null,null,null," The Self Questioning Strategy: Student Graphs"]
[]
[]
[]
[null,null,null,null,null,null,null,"TEACHER:",{"$f":"'Student Information'!C30","v":"00:00:00"}]
[null,null,{"$f":"'Student Information'!B6","v":0},null,null,null,null,"School:",{"$f":"'Student Information'!C31","v":"00:00:00"}]
[null,null,"Days From Pretest to Post Test:",null,null,null,{"$f":"PrePost!I7","v":0},"CLASS PERIOD:",{"$f":"'Student Information'!C32","v":0}]

{"sheet":"Student 5","index":13,"n_rows":7,"n_cols":9,"rows_kept":7,"cut":false,"hidden":false,"merged":[[0,4,2,9],[6,2,6,5]]}
[null,null,null,null," The Self Questioning Strategy: Student Graphs"]
[]
[]
[]
[null,null,null,null,null,null,null,"TEACHER:",{"$f":"'Student Information'!C30","v":"00:00:00"}]
[null,null,{"$f":"'Student Information'!B7","v":0},null,null,null,null,"School:",{"$f":"'Student Information'!C31","v":"00:00:00"}]
[null,null,"Days From Pretest to Post Test:",null,null,null,{"$f":"PrePost!I8","v":0},"CLASS PERIOD:",{"$f":"'Student Information'!C32","v":0}]

{"sheet":"Student 6","index":14,"n_rows":7,"n_cols":9,"rows_kept":7,"cut":false,"hidden":false,"merged":[[0,4,2,9],[6,2,6,5]]}
[null,null,null,null," The Self Questioning Strategy: Student Graphs"]
[]
[]
[]
[null,null,null,null,null,null,null,"TEACHER:",{"$f":"'Student Information'!C30","v":"00:00:00"}]
[null,null,{"$f":"'Student Information'!B8","v":0},null,null,null,null,"School:",{"$f":"'Student Information'!C31","v":"00:00:00"}]
[null,null,"Days From Pretest to Post Test:",null,null,null,{"$f":"PrePost!I9","v":0},"CLASS PERIOD:",{"$f":"'Student Information'!C32","v":0}]

{"sheet":"Student 7","index":15,"n_rows":7,"n_cols":9,"rows_kept":7,"cut":false,"hidden":false,"merged":[[0,4,2,9],[6,2,6,5]]}
[null,null,null,null," The Self Questioning Strategy: Student Graphs"]
[]
[]
[]
[null,null,null,null,null,null,null,"TEACHER:",{"$f":"'Student Information'!C30","v":"00:00:00"}]
[null,null,{"$f":"'Student Information'!B9","v":0},null,null,null,null,"School:",{"$f":"'Student Information'!C31","v":"00:00:00"}]
[null,null,"Days From Pretest to Post Test:",null,null,null,{"$f":"PrePost!I10","v":0},"CLASS PERIOD:",{"$f":"'Student Information'!C32","v":0}]

{"sheet":"Student 8","index":16,"n_rows":7,"n_cols":9,"rows_kept":7,"cut":false,"hidden":false,"merged":[[0,4,2,9],[6,2,6,5]]}
[null,null,null,null," The Self Questioning Strategy: Student Graphs"]
[]
[]
[]
[null,null,null,null,null,null,null,"TEACHER:",{"$f":"'Student Information'!C30","v":"00:00:00"}]
[null,null,{"$f":"'Student Information'!B10","v":0},null,null,null,null,"School:",{"$f":"'Student Information'!C31","v":"00:00:00"}]
[null,null,"Days From Pretest to Post Test:",null,null,null,{"$f":"PrePost!I11","v":0},"CLASS PERIOD:",{"$f":"'Student Information'!C32","v":0}]

{"sheet":"Student 9","index":17,"n_rows":63,"n_cols":15,"rows_kept":63,"cut":false,"hidden":false,"merged":[[0,4,2,9],[6,2,6,5]]}
[null,null,null,null," The Self Questioning Strategy: Student Graphs"]
[]
[]
[]
[null,null,null,null,null,null,null,"TEACHER:",{"$f":"'Student Information'!C30","v":"00:00:00"}]
[null,null,{"$f":"'Student Information'!B11","v":0},null,null,null,null,"School:",{"$f":"'Student Information'!C31","v":"00:00:00"}]
[null,null,"Days From Pretest to Post Test:",null,null,null,{"$f":"PrePost!I12","v":0},"CLASS PERIOD:",{"$f":"'Student Information'!C32","v":0}]
[]
[]
[]
[]
[]
[]
[]
[]
[]
[]
[]
[]
[]
[]
[]
[]
[]
[]
[]
[]
[]
[]
[]
[]
[]
[]
[]
[]
[]
[]
[]
[]
[]
[]
[]
[]
[]
[]
[]
[]
[]
[]
[]
[]
[]
[]
[]
[]
[]
[]
[]
[]
[]
[]
[]
[null,null,null,null,null,null,null,null,null,null,null,null,null,null,"                                                                                                       "]

{"sheet":"Student 10","index":18,"n_rows":63,"n_cols":15,"rows_kept":63,"cut":false,"hidden":false,"merged":[[0,4,2,9],[6,2,6,5]]}
[null,null,null,null," The Self Questioning Strategy: Student Graphs"]
[]
[]
[]
[null,null,null,null,null,null,null,"TEACHER:",{"$f":"'Student Information'!C30","v":"00:00:00"}]
[null,null,{"$f":"'Student Information'!B12","v":0},null,null,null,null,"School:",{"$f":"'Student Information'!C31","v":"00:00:00"}]
[null,null,"Days From Pretest to Post Test:",null,null,null,{"$f":"PrePost!I13","v":0},"CLASS PERIOD:",{"$f":"'Student Information'!C32","v":0}]
[]
[]
[]
[]
[]
[]
[]
[]
[]
[]
[]
[]
[]
[]
[]
[]
[]
[]
[]
[]
[]
[]
[]
[]
[]
[]
[]
[]
[]
[]
[]
[]
[]
[]
[]
[]
[]
[]
[]
[]
[]
[]
[]
[]
[]
[]
[]
[]
[]
[]
[]
[]
[]
[]
[]
[null,null,null,null,null,null,null,null,null,null,null,null,null,null,"                                                                                                       "]

{"sheet":"Student 11","index":19,"n_rows":63,"n_cols":15,"rows_kept":63,"cut":false,"hidden":false,"merged":[[0,4,2,9],[6,2,6,5]]}
[null,null,null,null," The Self Questioning Strategy: Student Graphs"]
[]
[]
[]
[null,null,null,null,null,null,null,"TEACHER:",{"$f":"'Student Information'!C30","v":"00:00:00"}]
[null,null,{"$f":"'Student Information'!B13","v":0},null,null,null,null,"School:",{"$f":"'Student Information'!C31","v":"00:00:00"}]
[null,null,"Days From Pretest to Post Test:",null,null,null,{"$f":"PrePost!I14","v":0},"CLASS PERIOD:",{"$f":"'Student Information'!C32","v":0}]
[]
[]
[]
[]
[]
[]
[]
[]
[]
[]
[]
[]
[]
[]
[]
[]
[]
[]
[]
[]
[]
[]
[]
[]
[]
[]
[]
[]
[]
[]
[]
[]
[]
[]
[]
[]
[]
[]
[]
[]
[]
[]
[]
[]
[]
[]
[]
[]
[]
[]
[]
[]
[]
[]
[]
[null,null,null,null,null,null,null,null,null,null,null,null,null,null,"                                                                                                       "]

{"sheet":"Student 12","index":20,"n_rows":63,"n_cols":15,"rows_kept":63,"cut":false,"hidden":false,"merged":[[0,4,2,9],[6,2,6,5]]}
[null,null,null,null," The Self Questioning Strategy: Student Graphs"]
[]
[]
[]
[null,null,null,null,null,null,null,"TEACHER:",{"$f":"'Student Information'!C30","v":"00:00:00"}]
[null,null,{"$f":"'Student Information'!B14","v":0},null,null,null,null,"School:",{"$f":"'Student Information'!C31","v":"00:00:00"}]
[null,null,"Days From Pretest to Post Test:",null,null,null,{"$f":"PrePost!I15","v":0},"CLASS PERIOD:",{"$f":"'Student Information'!C32","v":0}]
[]
[]
[]
[]
[]
[]
[]
[]
[]
[]
[]
[]
[]
[]
[]
[]
[]
[]
[]
[]
[]
[]
[]
[]
[]
[]
[]
[]
[]
[]
[]
[]
[]
[]
[]
[]
[]
[]
[]
[]
[]
[]
[]
[]
[]
[]
[]
[]
[]
[]
[]
[]
[]
[]
[]
[null,null,null,null,null,null,null,null,null,null,null,null,null,null,"                                                                                                       "]

{"sheet":"Student 13","index":21,"n_rows":63,"n_cols":15,"rows_kept":63,"cut":false,"hidden":false,"merged":[[0,4,2,9],[6,2,6,5]]}
[null,null,null,null," The Self Questioning Strategy: Student Graphs"]
[]
[]
[]
[null,null,null,null,null,null,null,"TEACHER:",{"$f":"'Student Information'!C30","v":"00:00:00"}]
[null,null,{"$f":"'Student Information'!B15","v":0},null,null,null,null,"School:",{"$f":"'Student Information'!C31","v":"00:00:00"}]
[null,null,"Days From Pretest to Post Test:",null,null,null,{"$f":"PrePost!I16","v":0},"CLASS PERIOD:",{"$f":"'Student Information'!C32","v":0}]
[]
[]
[]
[]
[]
[]
[]
[]
[]
[]
[]
[]
[]
[]
[]
[]
[]
[]
[]
[]
[]
[]
[]
[]
[]
[]
[]
[]
[]
[]
[]
[]
[]
[]
[]
[]
[]
[]
[]
[]
[]
[]
[]
[]
[]
[]
[]
[]
[]
[]
[]
[]
[]
[]
[]
[null,null,null,null,null,null,null,null,null,null,null,null,null,null,"                                                                                                       "]

{"sheet":"Student 14","index":22,"n_rows":63,"n_cols":15,"rows_kept":63,"cut":false,"hidden":false,"merged":[[0,4,2,9],[6,2,6,5]]}
[null,null,null,null," The Self Questioning Strategy: Student Graphs"]
[]
[]
[]
[null,null,null,null,null,null,null,"TEACHER:",{"$f":"'Student Information'!C30","v":"00:00:00"}]
[null,null,{"$f":"'Student Information'!B16","v":0},null,null,null,null,"School:",{"$f":"'Student Information'!C31","v":"00:00:00"}]
[null,null,"Days From Pretest to Post Test:",null,null,null,{"$f":"PrePost!I17","v":0},"CLASS PERIOD:",{"$f":"'Student Information'!C32","v":0}]
[]
[]
[]
[]
[]
[]
[]
[]
[]
[]
[]
[]
[]
[]
[]
[]
[]
[]
[]
[]
[]
[]
[]
[]
[]
[]
[]
[]
[]
[]
[]
[]
[]
[]
[]
[]
[]
[]
[]
[]
[]
[]
[]
[]
[]
[]
[]
[]
[]
[]
[]
[]
[]
[]
[]
[null,null,null,null,null,null,null,null,null,null,null,null,null,null,"                                                                                                       "]

{"sheet":"Student 15","index":23,"n_rows":63,"n_cols":15,"rows_kept":63,"cut":false,"hidden":false,"merged":[[0,4,2,9],[6,2,6,5]]}
[null,null,null,null," The Self Questioning Strategy: Student Graphs"]
[]
[]
[]
[null,null,null,null,null,null,null,"TEACHER:",{"$f":"'Student Information'!C30","v":"00:00:00"}]
[null,null,{"$f":"'Student Information'!B17","v":0},null,null,null,null,"School:",{"$f":"'Student Information'!C31","v":"00:00:00"}]
[null,null,"Days From Pretest to Post Test:",null,null,null,{"$f":"PrePost!I18","v":0},"CLASS PERIOD:",{"$f":"'Student Information'!C32","v":0}]
[]
[]
[]
[]
[]
[]
[]
[]
[]
[]
[]
[]
[]
[]
[]
[]
[]
[]
[]
[]
[]
[]
[]
[]
[]
[]
[]
[]
[]
[]
[]
[]
[]
[]
[]
[]
[]
[]
[]
[]
[]
[]
[]
[]
[]
[]
[]
[]
[]
[]
[]
[]
[]
[]
[]
[null,null,null,null,null,null,null,null,null,null,null,null,null,null,"                                                                                                       "]

{"sheet":"Student 16","index":24,"n_rows":63,"n_cols":15,"rows_kept":63,"cut":false,"hidden":false,"merged":[[0,4,2,9],[6,2,6,5]]}
[null,null,null,null," The Self Questioning Strategy: Student Graphs"]
[]
[]
[]
[null,null,null,null,null,null,null,"TEACHER:",{"$f":"'Student Information'!C30","v":"00:00:00"}]
[null,null,{"$f":"'Student Information'!B18","v":0},null,null,null,null,"School:",{"$f":"'Student Information'!C31","v":"00:00:00"}]
[null,null,"Days From Pretest to Post Test:",null,null,null,{"$f":"PrePost!I19","v":0},"CLASS PERIOD:",{"$f":"'Student Information'!C32","v":0}]
[]
[]
[]
[]
[]
[]
[]
[]
[]
[]
[]
[]
[]
[]
[]
[]
[]
[]
[]
[]
[]
[]
[]
[]
[]
[]
[]
[]
[]
[]
[]
[]
[]
[]
[]
[]
[]
[]
[]
[]
[]
[]
[]
[]
[]
[]
[]
[]
[]
[]
[]
[]
[]
[]
[]
[null,null,null,null,null,null,null,null,null,null,null,null,null,null,"                                                                                                       "]

{"sheet":"Student 17","index":25,"n_rows":63,"n_cols":15,"rows_kept":63,"cut":false,"hidden":false,"merged":[[0,4,2,9],[6,2,6,5]]}
[null,null,null,null," The Self Questioning Strategy: Student Graphs"]
[]
[]
[]
[null,null,null,null,null,null,null,"TEACHER:",{"$f":"'Student Information'!C30","v":"00:00:00"}]
[null,null,{"$f":"'Student Information'!B19","v":0},null,null,null,null,"School:",{"$f":"'Student Information'!C31","v":"00:00:00"}]
[null,null,"Days From Pretest to Post Test:",null,null,null,{"$f":"PrePost!I20","v":0},"CLASS PERIOD:",{"$f":"'Student Information'!C32","v":0}]
[]
[]
[]
[]
[]
[]
[]
[]
[]
[]
[]
[]
[]
[]
[]
[]
[]
[]
[]
[]
[]
[]
[]
[]
[]
[]
[]
[]
[]
[]
[]
[]
[]
[]
[]
[]
[]
[]
[]
[]
[]
[]
[]
[]
[]
[]
[]
[]
[]
[]
[]
[]
[]
[]
[]
[null,null,null,null,null,null,null,null,null,null,null,null,null,null,"                                                                                                       "]

{"sheet":"Student 18","index":26,"n_rows":63,"n_cols":15,"rows_kept":63,"cut":false,"hidden":false,"merged":[[0,4,2,9],[6,2,6,5]]}
[null,null,null,null," The Self Questioning Strategy: Student Graphs"]
[]
[]
[]
[null,null,null,null,null,null,null,"TEACHER:",{"$f":"'Student Information'!C30","v":"00:00:00"}]
[null,null,{"$f":"'Student Information'!B20","v":0},null,null,null,null,"School:",{"$f":"'Student Information'!C31","v":"00:00:00"}]
[null,null,"Days From Pretest to Post Test:",null,null,null,{"$f":"PrePost!I21","v":0},"CLASS PERIOD:",{"$f":"'Student Information'!C32","v":0}]
[]
[]
[]
[]
[]
[]
[]
[]
[]
[]
[]
[]
[]
[]
[]
[]
[]
[]
[]
[]
[]
[]
[]
[]
[]
[]
[]
[]
[]
[]
[]
[]
[]
[]
[]
[]
[]
[]
[]
[]
[]
[]
[]
[]
[]
[]
[]
[]
[]
[]
[]
[]
[]
[]
[]
[null,null,null,null,null,null,null,null,null,null,null,null,null,null,"                                                                                                       "]

{"sheet":"Student 19","index":27,"n_rows":63,"n_cols":15,"rows_kept":63,"cut":false,"hidden":false,"merged":[[0,4,2,9],[6,2,6,5]]}
[null,null,null,null," The Self Questioning Strategy: Student Graphs"]
[]
[]
[]
[null,null,null,null,null,null,null,"TEACHER:",{"$f":"'Student Information'!C30","v":"00:00:00"}]
[null,null,{"$f":"'Student Information'!B21","v":0},null,null,null,null,"School:",{"$f":"'Student Information'!C31","v":"00:00:00"}]
[null,null,"Days From Pretest to Post Test:",null,null,null,{"$f":"PrePost!I22","v":0},"CLASS PERIOD:",{"$f":"'Student Information'!C32","v":0}]
[]
[]
[]
[]
[]
[]
[]
[]
[]
[]
[]
[]
[]
[]
[]
[]
[]
[]
[]
[]
[]
[]
[]
[]
[]
[]
[]
[]
[]
[]
[]
[]
[]
[]
[]
[]
[]
[]
[]
[]
[]
[]
[]
[]
[]
[]
[]
[]
[]
[]
[]
[]
[]
[]
[]
[null,null,null,null,null,null,null,null,null,null,null,null,null,null,"                                                                                                       "]

{"sheet":"Student 20","index":28,"n_rows":63,"n_cols":15,"rows_kept":63,"cut":false,"hidden":false,"merged":[[0,4,2,9],[6,2,6,5]]}
[null,null,null,null," The Self Questioning Strategy: Student Graphs"]
[]
[]
[]
[null,null,null,null,null,null,null,"TEACHER:",{"$f":"'Student Information'!C30","v":"00:00:00"}]
[null,null,{"$f":"'Student Information'!B22","v":0},null,null,null,null,"School:",{"$f":"'Student Information'!C31","v":"00:00:00"}]
[null,null,"Days From Pretest to Post Test:",null,null,null,{"$f":"PrePost!I23","v":0},"CLASS PERIOD:",{"$f":"'Student Information'!C32","v":0}]
[]
[]
[]
[]
[]
[]
[]
[]
[]
[]
[]
[]
[]
[]
[]
[]
[]
[]
[]
[]
[]
[]
[]
[]
[]
[]
[]
[]
[]
[]
[]
[]
[]
[]
[]
[]
[]
[]
[]
[]
[]
[]
[]
[]
[]
[]
[]
[]
[]
[]
[]
[]
[]
[]
[]
[null,null,null,null,null,null,null,null,null,null,null,null,null,null,"                                                                                                       "]